bitfinex-derivatives/quotes_SOLF0:USTF0_20260115
["timestamp","ask_amount","ask_price","bid_price","bid_amount"]
[1768449287166,43.67347612,143.44,143.39,6.33199679]
[1768449287769,82.36,143.45,143.39,48.46221003]
[1768449287968,126.03347612,143.45,143.39,48.46221003]
[1768449288274,0.04781858,143.43,143.39,48.46221003]
[1768449289775,0.04781858,143.43,143.39,50.64047362]
[1768449291676,126.03347612,143.45,143.4,6.2779]
[1768449291874,126.03347612,143.45,143.4,50.59336991]
[1768449292779,0.04850156,143.44,143.4,50.59336991]
[1768449295582,40.87574002,143.44,143.39,0.05369679]
[1768449296177,40.87574002,143.44,143.39,44.3691667]
[1768449300791,40.87574002,143.44,143.39,0.05369679]
[1768449307792,47.15214002,143.44,143.34,50.59576991]
[1768449307991,47.10363846,143.44,143.34,50.59576991]
[1768449308192,47.10363846,143.44,143.34,44.31546991]
[1768449308896,0.05020913,143.4,143.38,0.05024375]
[1768449309196,40.82723846,143.42,143.38,0.05024375]
[1768449310100,0.05250046,143.41,143.38,0.05024375]
[1768449312503,40.87973892,143.41,143.38,0.05024375]
[1768449313607,123.20723846,143.44,143.38,44.36571366]
[1768449317100,40.82723846,143.43,143.38,44.36571366]
[1768449328208,40.82723846,143.43,143.38,0.05024375]
[1768449329706,45.00800145,143.41,143.34,42.58894693]
[1768449329900,45.00800145,143.4,143.34,42.58894693]
[1768449330103,36.2882774,143.4,143.34,42.58894693]
[1768449330512,36.2882774,143.4,143.34,48.86944693]
[1768449330805,36.2882774,143.4,143.36,0.04512173]
[1768449330806,0.04530392,143.38,143.36,0.04512173]
[1768449331012,82.38,143.41,143.36,42.63406866]
[1768449332813,82.38,143.41,143.36,48.91366866]
[1768449335117,0.04518389,143.4,143.36,48.91366866]
[1768449338728,82.38,143.42,143.36,48.91366866]
[1768449342022,119.06008884,143.42,143.36,48.91366866]
[1768449347029,0.04512964,143.4,143.36,48.91366866]
[1768449349126,0.04512964,143.4,143.36,42.63406866]
[1768449351933,36.9469306,143.4,143.36,0.04512173]
[1768449363136,36.9469306,143.4,143.33,43.74181386]
[1768449363326,39.12752022,143.4,143.33,43.74181386]
[1768449364128,39.12752022,143.4,143.35,0.05056445]
[1768449367842,36.9469306,143.4,143.35,0.05056445]
[1768449376141,37.29811048,143.38,143.31,50.02341386]
[1768449377145,0.05169062,143.36,143.33,0.05110034]
[1768449386654,38.86939935,143.36,143.18,43.99294129]
[1768449386959,5.39960439,143.35,143.25,46.17353091]
[1768449387155,5.39960439,143.34,143.25,128.57353091]
[1768449387360,5.39960439,143.33,143.25,128.57353091]
[1768449387657,6.2804,143.35,143.25,128.57353091]
[1768449387961,5.56504595,143.34,143.28,0.05114316]
[1768449388257,5.56504595,143.33,143.28,0.05114316]
[1768449388459,2.18058962,143.36,143.28,0.05114316]
[1768449388662,5.5606924,143.35,143.28,0.05114316]
[1768449388961,11.84124578,143.34,143.28,0.05114316]
[1768449389161,43.01642561,143.33,143.28,0.05114316]
[1768449389357,37.45597983,143.33,143.28,0.05114316]
[1768449397983,37.45597983,143.33,143.29,82.44]
[1768449398580,37.60996321,143.32,143.29,82.44]
[1768449399983,0.04458512,143.32,143.29,82.44]
[1768449405579,37.67187613,143.32,143.28,0.05114316]
[1768449405785,39.85246575,143.32,143.28,82.44]
[1768449406683,39.85246575,143.32,143.29,0.05157531]
[1768449406885,46.13416575,143.32,143.29,0.05157531]
[1768449407783,46.13416575,143.32,143.24,43.99294129]
[1768449407984,46.13416575,143.32,143.25,126.43294129]
[1768449408181,46.08958063,143.32,143.25,126.43294129]
[1768449408787,0.0513669,143.3,143.27,0.05288478]
[1768449409682,0.0513669,143.3,143.27,44.04582607]
[1768449409882,35.1507502,143.32,143.27,44.04582607]
[1768449410075,2.18058962,143.34,143.27,44.04582607]
[1768449410274,97.6718,143.38,143.27,44.04582607]
[1768449410479,2.18058962,143.35,143.27,43.99294129]
[1768449410682,97.6718,143.38,143.27,43.99294129]
[1768449410986,0.04421117,143.34,143.31,0.04800188]
[1768449411188,0.04421117,143.34,143.31,82.48800188]
[1768449411486,0.04421117,143.34,143.31,0.04800188]
[1768449411786,0.04421117,143.34,143.31,36.24055367]
[1768449412085,35.23485664,143.34,143.31,25.58365367]
[1768449412784,35.23485664,143.34,143.31,25.63096035]
[1768449413888,35.23485664,143.34,143.3,82.44]
[1768449414187,37.37368066,143.33,143.25,51.72635089]
[1768449414388,37.37368066,143.33,143.28,82.44]
[1768449414586,37.37368066,143.33,143.27,82.44]
[1768449414982,0.04950888,143.31,143.29,0.05200458]
[1768449415482,0.04950888,143.31,143.26,82.44]
[1768449415879,97.6894,143.36,143.26,82.44]
[1768449415880,35.24514945,143.36,143.29,45.44205089]
[1768449416781,35.24514945,143.36,143.29,51.72465089]
[1768449416981,35.24514945,143.36,143.31,0.0509878]
[1768449417183,35.24514945,143.36,143.31,82.4909878]
[1768449417382,0.0533019,143.35,143.31,82.4909878]
[1768449417581,28.91293536,143.31,143.21,45.44205089]
[1768449417787,31.09352498,143.31,143.23,45.44205089]
[1768449417980,28.91293536,143.31,143.23,45.44205089]
[1768449419885,28.91293536,143.31,143.25,45.44205089]
[1768449420088,28.91293536,143.31,143.26,82.44]
[1768449420581,31.14203158,143.3,143.22,6.2856]
[1768449420790,31.14203158,143.3,143.23,127.88205089]
[1768449421696,31.14203158,143.3,143.23,45.44205089]
[1768449421889,0.04666417,143.28,143.25,0.05075629]
[1768449429993,0.04666417,143.28,143.25,82.51075629]
[1768449433805,28.96144196,143.3,143.25,82.51075629]
[1768449434107,5.56542677,143.29,143.25,82.51075629]
[1768449434302,28.96144196,143.3,143.25,82.51075629]
[1768449434495,5.56491845,143.29,143.25,82.51075629]
[1768449434699,28.96144196,143.3,143.25,82.51075629]
[1768449434905,0.04935971,143.28,143.25,82.51075629]
[1768449439301,35.5149146,143.32,143.26,45.44205089]
[1768449439608,5.56395372,143.31,143.26,45.44205089]
[1768449439804,5.56395372,143.3,143.26,45.44205089]
[1768449440008,29.2331146,143.34,143.26,45.44205089]
[1768449440209,5.56468601,143.33,143.26,45.44205089]
[1768449440409,29.2331146,143.34,143.29,0.05210685]
[1768449440609,5.56539065,143.33,143.29,82.51210685]
[1768449440808,29.2331146,143.34,143.29,82.51210685]
[1768449441008,5.56514407,143.33,143.29,82.51210685]
[1768449441208,29.2331146,143.34,143.29,82.51210685]
[1768449441415,5.56394444,143.33,143.29,126.17221642]
[1768449441708,35.58775347,143.35,143.29,126.17221642]
[1768449441909,0.05050079,143.33,143.29,126.17221642]
[1768449442507,0.05050079,143.33,143.3,43.44506322]
[1768449442703,29.30725347,143.35,143.3,43.44506322]
[1768449442902,5.56365018,143.34,143.3,43.44506322]
[1768449443106,29.30725347,143.35,143.3,43.44506322]
[1768449443302,5.56337536,143.34,143.3,43.44506322]
[1768449443509,29.34673736,143.37,143.3,43.44506322]
[1768449443716,5.5630613,143.36,143.32,0.05238108]
[1768449444011,5.5630613,143.35,143.32,0.05238108]
[1768449444212,29.34673736,143.37,143.32,0.05238108]
[1768449444411,5.56211298,143.36,143.32,0.05238108]
[1768449444611,5.56211298,143.35,143.32,0.05238108]
[1768449444911,29.34673736,143.37,143.32,0.05238108]
[1768449445106,5.56211013,143.36,143.32,0.05238108]
[1768449445306,5.56211013,143.35,143.32,0.05238108]
[1768449445510,0.04775279,143.35,143.32,0.05238108]
[1768449448609,29.40108396,143.39,143.32,43.4974443]
[1768449448812,5.55907814,143.38,143.32,43.4974443]
[1768449449014,5.55907814,143.37,143.32,43.4974443]
[1768449449214,29.41143136,143.38,143.32,43.4974443]
[1768449449412,5.55796209,143.37,143.32,43.4974443]
[1768449449614,29.41143136,143.38,143.32,43.4974443]
[1768449449912,0.05003824,143.36,143.32,43.4974443]
[1768449451315,35.71067341,143.4,143.32,43.4974443]
[1768449451516,5.55541176,143.39,143.32,43.4974443]
[1768449451809,5.55541176,143.38,143.32,43.4974443]
[1768449452016,5.55541176,143.37,143.32,43.4974443]
[1768449452317,0.05205669,143.36,143.33,82.44]
[1768449452615,0.05205669,143.36,143.33,125.93128061]
[1768449453219,35.71067341,143.4,143.33,125.93128061]
[1768449453417,5.55394051,143.39,143.33,125.93128061]
[1768449453618,5.55394051,143.38,143.33,125.93128061]
[1768449453817,35.71067341,143.4,143.33,125.93128061]
[1768449454009,5.55377857,143.39,143.33,125.93128061]
[1768449454213,5.55377857,143.38,143.33,125.93128061]
[1768449454413,35.71067341,143.4,143.33,125.93128061]
[1768449454611,5.55249853,143.39,143.34,43.44506322]
[1768449454807,5.55249853,143.38,143.34,43.44506322]
[1768449455010,35.71067341,143.4,143.34,43.44506322]
[1768449455211,5.55015767,143.39,143.34,43.44506322]
[1768449455419,5.55015767,143.38,143.34,43.44506322]
[1768449455618,35.71067341,143.4,143.34,43.44506322]
[1768449455820,5.54895984,143.39,143.34,43.44506322]
[1768449456019,5.54895984,143.38,143.34,43.44506322]
[1768449456209,35.71067341,143.4,143.34,43.44506322]
[1768449456413,5.54792616,143.39,143.34,43.44506322]
[1768449456721,35.71067341,143.4,143.34,43.44506322]
[1768449456920,5.54683061,143.39,143.34,43.44506322]
[1768449457221,35.71067341,143.4,143.34,43.44506322]
[1768449457416,5.54480572,143.39,143.34,43.44506322]
[1768449457718,35.71067341,143.4,143.34,43.44506322]
[1768449462629,6.2785,143.39,143.34,43.44506322]
[1768449465322,29.43237341,143.4,143.34,43.44506322]
[1768449467625,6.2779,143.41,143.34,43.44506322]
[1768449467831,6.2779,143.41,143.36,0.0507616]
[1768449468438,34.72219733,143.41,143.36,0.0507616]
[1768449471638,33.62902806,143.4,143.36,0.0507616]
[1768449471846,27.3964877,143.39,143.33,123.44876529]
[1768449472143,27.35092806,143.39,143.33,41.02876529]
[1768449472337,6.279,143.38,143.33,41.02876529]
[1768449472741,6.279,143.38,143.34,0.05090778]
[1768449473140,0.04813333,143.37,143.34,0.05090778]
[1768449474636,32.86872856,143.36,143.3,41.02876529]
[1768449475838,32.86872856,143.36,143.32,0.05084894]
[1768449478635,0.04976755,143.35,143.32,0.05084894]
[1768449479036,0.04976755,143.35,143.32,41.07961423]
[1768449480241,0.04976755,143.35,143.32,30.40151423]
[1768449480444,0.04976755,143.35,143.28,82.42]
[1768449480946,6.33016755,143.35,143.28,82.42]
[1768449481241,6.33016755,143.35,143.3,0.04689302]
[1768449482348,6.33016755,143.35,143.3,41.07565831]
[1768449483347,0.04976755,143.35,143.3,41.07565831]
[1768449484246,5.56232821,143.34,143.3,41.07565831]
[1768449484451,6.2796,143.37,143.3,41.07565831]
[1768449484648,5.56251931,143.36,143.3,41.07565831]
[1768449484943,6.2796,143.37,143.3,41.07565831]
[1768449485245,5.56305826,143.36,143.3,41.07565831]
[1768449485441,48.0405911,143.39,143.33,41.02876529]
[1768449485638,0.04514549,143.37,143.33,41.02876529]
[1768449487347,0.04514549,143.37,143.33,43.20900426]
[1768449489451,0.04514549,143.37,143.33,41.02876529]
[1768449489748,0.04514549,143.37,143.33,43.20900426]
[1768449490152,6.2788,143.39,143.33,43.20900426]
[1768449490448,5.56703684,143.38,143.33,43.20900426]
[1768449490645,5.56703684,143.37,143.33,43.20900426]
[1768449490845,2.18023897,143.42,143.33,43.20900426]
[1768449491046,5.56693853,143.41,143.35,43.20900426]
[1768449491243,5.56693853,143.4,143.37,0.05185433]
[1768449491444,5.56693853,143.39,143.37,0.05185433]
[1768449491645,5.56693853,143.38,143.37,0.05185433]
[1768449493354,0.05359971,143.39,143.37,0.05185433]
[1768449493651,6.2772,143.42,143.37,0.05185433]
[1768449493852,5.56626291,143.41,143.37,0.05185433]
[1768449494052,5.56626291,143.4,143.37,0.05185433]
[1768449494253,5.56626291,143.39,143.37,0.05185433]
[1768449494555,48.0389911,143.42,143.37,0.05185433]
[1768449494754,5.56566676,143.41,143.37,0.05185433]
[1768449494955,5.56566676,143.4,143.37,0.05185433]
[1768449495153,5.56566676,143.39,143.37,0.05185433]
[1768449495350,6.2776,143.41,143.37,0.05185433]
[1768449495551,5.56526059,143.4,143.37,0.05185433]
[1768449495850,6.2776,143.41,143.37,0.05185433]
[1768449495851,5.56526059,143.39,143.37,0.05185433]
[1768449496051,6.2776,143.41,143.37,0.05185433]
[1768449496354,5.56577029,143.4,143.37,0.05185433]
[1768449496554,5.56577029,143.39,143.37,0.05185433]
[1768449496754,6.2776,143.41,143.37,0.05185433]
[1768449497051,6.277,143.43,143.37,43.26085859]
[1768449498148,41.7617911,143.44,143.38,41.02876529]
[1768449500251,6.276,143.45,143.38,41.02876529]
[1768449500453,6.276,143.45,143.39,43.20900426]
[1768449500755,6.276,143.45,143.4,0.0498283]
[1768449501953,41.7617911,143.46,143.4,41.29310691]
[1768449505553,41.7617911,143.46,143.4,0.0498283]
[1768449505753,41.7617911,143.46,143.4,40.22246534]
[1768449506557,38.91115015,143.48,143.42,40.17263704]
[1768449507054,38.91115015,143.48,143.44,0.04982686]
[1768449508053,6.2743,143.49,143.44,0.04982686]
[1768449508251,38.91115015,143.5,143.44,40.2224639]
[1768449508452,38.91115015,143.5,143.44,0.04982686]
[1768449510159,82.4,143.51,143.45,40.17263704]
[1768449511053,121.31115015,143.51,143.45,40.17263704]
[1768449512660,38.91115015,143.5,143.44,0.04982686]
[1768449513264,38.91115015,143.5,143.44,40.2224639]
[1768449515053,41.09138912,143.49,143.44,0.04982686]
[1768449515757,41.09138912,143.48,143.44,0.04982686]
[1768449516452,47.36598912,143.48,143.4,40.17263704]
[1768449517455,47.36598912,143.48,143.43,0.05064706]
[1768449518464,0.04527797,143.47,143.43,0.05064706]
[1768449520860,6.32037797,143.47,143.43,0.05064706]
[1768449522763,45.23152812,143.47,143.43,0.05064706]
[1768449523667,6.2754,143.46,143.43,0.05064706]
[1768449526859,38.95642812,143.47,143.43,0.05064706]
[1768449528769,45.23152812,143.47,143.43,0.05064706]
[1768449529168,38.95642812,143.47,143.43,0.05064706]
[1768449529963,38.91115015,143.45,143.39,42.35287601]
[1768449530156,38.91115015,143.45,143.38,40.17263704]
[1768449531067,38.91115015,143.45,143.4,0.05208392]
[1768449531262,0.05097935,143.44,143.4,0.05208392]
[1768449532169,38.78330382,143.44,143.4,0.05208392]
[1768449539177,0.05097935,143.44,143.4,39.80004413]
[1768449539481,38.07300634,143.47,143.41,41.92819918]
[1768449540174,5.54007407,143.46,143.41,41.92819918]
[1768449540375,0.04989117,143.45,143.41,41.92819918]
[1768449542280,37.89411047,143.49,143.41,41.92819918]
[1768449542472,5.55102055,143.48,143.41,39.74796021]
[1768449542677,5.55102055,143.47,143.43,39.74796021]
[1768449542881,37.89411047,143.49,143.43,39.74796021]
[1768449543076,5.549307,143.48,143.43,39.74796021]
[1768449543375,5.549307,143.47,143.44,0.04757483]
[1768449543572,37.89411047,143.49,143.44,0.04757483]
[1768449543766,5.55002265,143.48,143.44,0.04757483]
[1768449543965,5.55002265,143.47,143.44,0.04757483]
[1768449544169,37.89411047,143.49,143.44,0.04757483]
[1768449544376,5.55196873,143.48,143.44,0.04757483]
[1768449544576,5.55196873,143.47,143.44,0.04757483]
[1768449544769,37.89411047,143.49,143.44,0.04757483]
[1768449544969,5.55284228,143.48,143.44,0.04757483]
[1768449545170,5.55474585,143.47,143.44,0.04757483]
[1768449545370,37.89411047,143.49,143.44,0.04757483]
[1768449545571,5.55476909,143.48,143.44,0.04757483]
[1768449545875,37.89411047,143.49,143.44,0.04757483]
[1768449545876,5.55476909,143.47,143.44,0.04757483]
[1768449546074,37.89411047,143.49,143.44,0.04757483]
[1768449546274,5.55599439,143.48,143.44,0.04757483]
[1768449546475,5.55599439,143.47,143.44,0.04757483]
[1768449546675,37.89411047,143.49,143.44,0.04757483]
[1768449546878,5.55591984,143.48,143.44,0.04757483]
[1768449547071,5.55591984,143.47,143.44,0.04757483]
[1768449547266,37.89411047,143.49,143.44,0.04757483]
[1768449547470,5.55605176,143.48,143.44,0.04757483]
[1768449547671,5.55605176,143.47,143.44,0.04757483]
[1768449547971,37.89411047,143.49,143.44,0.04757483]
[1768449548173,5.55624359,143.48,143.44,0.04757483]
[1768449548372,5.55624359,143.47,143.44,0.04757483]
[1768449550579,37.29921774,143.48,143.44,0.04757483]
[1768449550771,5.55763042,143.47,143.44,0.04757483]
[1768449550972,37.29921774,143.48,143.44,0.04757483]
[1768449551173,5.55763042,143.47,143.44,0.04757483]
[1768449551473,37.29921774,143.48,143.44,0.04757483]
[1768449551678,5.55829161,143.47,143.44,0.04757483]
[1768449551979,6.2741,143.49,143.44,0.04757483]
[1768449552179,5.55829161,143.48,143.44,39.79553504]
[1768449552380,5.55829161,143.47,143.44,39.79553504]
[1768449552680,6.2741,143.49,143.44,39.79553504]
[1768449552881,5.55818446,143.48,143.44,39.79553504]
[1768449553178,5.55818446,143.47,143.44,39.79553504]
[1768449553374,6.2741,143.49,143.44,39.79553504]
[1768449553574,5.55794182,143.48,143.44,39.79553504]
[1768449553779,5.55794182,143.47,143.44,39.79553504]
[1768449553977,43.10127381,143.49,143.44,39.79553504]
[1768449554180,5.55775526,143.48,143.44,0.04757483]
[1768449554376,5.55775526,143.47,143.44,0.04757483]
[1768449554575,43.10127381,143.49,143.44,0.04757483]
[1768449554776,5.55755059,143.48,143.44,0.04757483]
[1768449554975,5.55755059,143.47,143.44,0.04757483]
[1768449555175,43.10127381,143.49,143.44,0.04757483]
[1768449555372,5.55766799,143.48,143.44,0.04757483]
[1768449555576,5.55766799,143.47,143.44,0.04757483]
[1768449555880,43.10127381,143.49,143.39,3.40261796]
[1768449555881,36.82717381,143.49,143.39,39.74796021]
[1768449556081,100.98311796,143.52,143.39,39.74796021]
[1768449556082,36.62997716,143.46,143.39,39.74796021]
[1768449556273,5.55757083,143.45,143.39,39.74796021]
[1768449556470,36.62997716,143.48,143.39,39.74796021]
[1768449556676,5.55768132,143.47,143.39,43.15057817]
[1768449556977,36.62997716,143.48,143.42,39.7940579]
[1768449557281,5.55844668,143.47,143.42,39.7940579]
[1768449557481,36.62997716,143.48,143.42,39.7940579]
[1768449557683,5.55872635,143.47,143.42,39.7940579]
[1768449557981,36.62997716,143.48,143.42,39.7940579]
[1768449558181,5.55911386,143.47,143.42,39.7940579]
[1768449558384,36.62997716,143.48,143.42,39.7940579]
[1768449558585,5.55912953,143.47,143.42,39.7940579]
[1768449558880,36.62997716,143.48,143.42,39.7940579]
[1768449559077,5.55899321,143.47,143.42,39.7940579]
[1768449559270,36.62997716,143.48,143.42,39.7940579]
[1768449559473,5.55913941,143.47,143.42,39.7940579]
[1768449559673,36.62997716,143.48,143.42,39.7940579]
[1768449559977,5.55913941,143.47,143.42,39.7940579]
[1768449560283,36.62997716,143.48,143.42,39.7940579]
[1768449560284,0.04395075,143.46,143.42,39.7940579]
[1768449561574,0.04395075,143.46,143.42,0.04609769]
[1768449561990,5.55817512,143.45,143.42,0.04609769]
[1768449562284,0.04395075,143.46,143.42,0.04609769]
[1768449562480,36.08603857,143.46,143.42,0.04609769]
[1768449562684,41.60024188,143.45,143.42,0.04609769]
[1768449562883,36.04208782,143.45,143.42,0.04609769]
[1768449563390,5.55784022,143.44,143.42,0.04609769]
[1768449563587,36.04208782,143.45,143.42,0.04609769]
[1768449563788,5.55784022,143.44,143.38,38.49908209]
[1768449563992,36.04208782,143.45,143.38,38.49908209]
[1768449564187,5.55748852,143.44,143.38,38.49908209]
[1768449564487,36.04208782,143.45,143.38,38.49908209]
[1768449564688,5.55727527,143.44,143.38,38.49908209]
[1768449564888,36.04208782,143.45,143.4,0.04805998]
[1768449565088,5.55727527,143.44,143.4,0.04805998]
[1768449565290,0.05245459,143.44,143.4,0.04805998]
[1768449569089,5.5559653,143.43,143.4,0.04805998]
[1768449569281,35.70457874,143.44,143.4,0.04805998]
[1768449569588,36.99068939,143.48,143.4,38.54714207]
[1768449569790,97.5805,143.52,143.42,38.49908209]
[1768449569995,43.26438939,143.5,143.42,38.49908209]
[1768449570693,43.26438939,143.5,143.45,0.04515489]
[1768449572095,36.99068939,143.5,143.45,0.04515489]
[1768449572290,0.04405485,143.49,143.45,0.04515489]
[1768449575499,0.04405485,143.49,143.45,38.54423698]
[1768449577196,36.99068939,143.54,143.45,38.54423698]
[1768449577492,36.99068939,143.54,143.45,38.49908209]
[1768449578295,36.99068939,143.54,143.48,0.05025577]
[1768449581603,5.53212704,143.53,143.48,0.05025577]
[1768449581802,36.99068939,143.54,143.48,0.05025577]
[1768449581995,5.53212987,143.53,143.48,0.05025577]
[1768449582289,36.99068939,143.54,143.48,0.05025577]
[1768449582493,42.52261566,143.53,143.48,0.05025577]
[1768449582695,36.99068939,143.53,143.48,0.05025577]
[1768449587507,43.26228939,143.55,143.48,38.54933786]
[1768449587695,42.52152645,143.54,143.48,38.54933786]
[1768449587897,36.99068939,143.54,143.48,38.54933786]
[1768449588097,43.26288939,143.54,143.48,0.05025577]
[1768449588296,42.52142954,143.53,143.48,0.05025577]
[1768449588500,36.99068939,143.53,143.48,0.05025577]
[1768449596101,43.26308939,143.53,143.48,0.05025577]
[1768449600212,42.47080312,143.52,143.48,0.05025577]
[1768449600412,42.47080312,143.52,143.44,36.07634869]
[1768449600413,36.19800312,143.52,143.44,36.07634869]
[1768449601015,42.47130312,143.51,143.44,36.07634869]
[1768449601520,0.05292249,143.49,143.46,0.0521531]
[1768449602117,36.25092561,143.49,143.46,0.0521531]
[1768449602321,36.25092561,143.49,143.42,36.07634869]
[1768449602522,36.25092561,143.49,143.43,36.07634869]
[1768449602719,0.05292249,143.49,143.43,36.07634869]
[1768449603527,0.05292249,143.49,143.45,0.04637212]
[1768449603918,36.19800312,143.48,143.45,0.04637212]
[1768449604118,36.19800312,143.48,143.42,36.07634869]
[1768449604323,6.32712249,143.49,143.42,36.07634869]
[1768449604615,36.19800312,143.48,143.4,36.07634869]
[1768449605010,0.04560513,143.45,143.43,0.04632293]
[1768449605214,0.04560513,143.45,143.4,36.07634869]
[1768449605418,36.24360825,143.45,143.37,36.07634869]
[1768449605915,6.2768,143.43,143.37,36.07634869]
[1768449606315,0.04414713,143.41,143.39,0.0491902]
[1768449606724,0.04414713,143.41,143.36,36.07634869]
[1768449607524,36.24215025,143.41,143.33,36.07634869]
[1768449608129,6.2795,143.37,143.3,36.07634869]
[1768449608919,6.2795,143.37,143.21,97.7873]
[1768449608920,0.0494638,143.35,143.21,97.7873]
[1768449609122,36.19800312,143.36,143.25,3.40261796]
[1768449609327,38.37990077,143.36,143.27,2.18189765]
[1768449609522,36.19800312,143.34,143.21,6.2859]
[1768449610238,0.04750419,143.29,143.26,0.04421626]
[1768449610534,38.37990077,143.34,143.26,0.04421626]
[1768449611536,0.04604226,143.31,143.26,0.04421626]
[1768449612235,36.19800312,143.36,143.27,38.25824634]
[1768449612432,36.19800312,143.36,143.29,2.18189765]
[1768449613138,36.19800312,143.36,143.29,38.25824634]
[1768449613338,36.19800312,143.36,143.31,0.04687371]
[1768449613339,0.05270517,143.34,143.31,0.04687371]
[1768449613939,36.19800312,143.36,143.31,0.04687371]
[1768449614244,36.19800312,143.38,143.31,0.04687371]
[1768449615038,0.047739,143.36,143.31,0.04687371]
[1768449616740,0.047739,143.36,143.31,36.1232224]
[1768449618046,88.6578,143.41,143.32,38.25824634]
[1768449618047,118.57800312,143.41,143.32,38.25824634]
[1768449618440,38.37990077,143.41,143.32,38.25824634]
[1768449619050,0.04610601,143.38,143.35,0.04800037]
[1768449623646,2.18189765,143.41,143.35,0.04800037]
[1768449623843,38.34435286,143.41,143.35,0.04800037]
[1768449624549,0.04878355,143.39,143.35,0.04800037]
[1768449625644,36.16245521,143.41,143.35,0.04800037]
[1768449626853,0.05218776,143.39,143.35,0.04800037]
[1768449628161,0.05218776,143.39,143.35,34.40090829]
[1768449632144,0.05218776,143.39,143.35,0.04800037]
[1768449634158,36.21464297,143.39,143.35,0.04800037]
[1768449639666,36.21464297,143.39,143.32,82.4]
[1768449639857,36.16245521,143.39,143.32,82.4]
[1768449640366,42.44095521,143.39,143.32,82.4]
[1768449640759,0.04618863,143.37,143.34,0.04680223]
[1768449649762,36.16245521,143.39,143.34,0.04680223]
[1768449650965,0.049984,143.38,143.34,0.04680223]
[1768449657673,0.049984,143.38,143.34,35.63703783]
[1768449657879,38.71109206,143.41,143.34,35.63703783]
[1768449658281,5.53418995,143.4,143.34,35.63703783]
[1768449658481,38.71109206,143.41,143.34,35.63703783]
[1768449658681,5.53561484,143.4,143.34,35.63703783]
[1768449658884,0.02342444,143.39,143.34,35.63703783]
[1768449661386,0.02342444,143.39,143.34,37.81893548]
[1768449661592,0.02342444,143.39,143.36,37.77213325]
[1768449661777,36.52919441,143.43,143.37,117.9902356]
[1768449662781,36.52919441,143.43,143.39,0.0439952]
[1768449663880,5.53974433,143.42,143.37,35.5902356]
[1768449664085,36.52919441,143.43,143.37,117.9902356]
[1768449664390,36.52919441,143.43,143.37,35.5902356]
[1768449664988,36.52919441,143.43,143.39,0.05262194]
[1768449665487,0.0439952,143.42,143.39,0.05262194]
[1768449667787,2.18189765,143.44,143.39,35.64285754]
[1768449668795,38.71109206,143.44,143.39,35.64285754]
[1768449669494,36.52919441,143.44,143.39,35.64285754]
[1768449669895,36.52919441,143.44,143.39,0.05262194]
[1768449670593,42.80479441,143.46,143.39,35.64285754]
[1768449670799,7.71535486,143.45,143.39,35.64285754]
[1768449670989,2.18189765,143.45,143.39,35.64285754]
[1768449671393,42.80479441,143.46,143.39,35.64285754]
[1768449671595,42.06191616,143.45,143.39,35.64285754]
[1768449671795,36.52919441,143.45,143.39,35.64285754]
[1768449672295,36.52919441,143.47,143.39,35.64285754]
[1768449674096,36.52919441,143.47,143.39,41.92105754]
[1768449674599,36.52919441,143.49,143.39,41.92105754]
[1768449674899,36.52919441,143.49,143.43,0.05364441]
[1768449675097,36.52919441,143.49,143.43,82.43364441]
[1768449679498,36.52919441,143.49,143.43,118.02388001]
[1768449679698,36.52919441,143.49,143.44,35.5902356]
[1768449682302,36.52919441,143.49,143.43,82.43364441]
[1768449682500,42.80339441,143.49,143.43,82.43364441]
[1768449683601,34.8811008,143.47,143.39,35.11917667]
[1768449683804,38.28551262,143.47,143.39,117.47917667]
[1768449684110,34.8811008,143.47,143.39,117.47917667]
[1768449684603,0.04763315,143.44,143.42,0.04439438]
[1768449687904,179.9607,143.49,143.42,35.16357105]
[1768449687905,6.2747,143.48,143.42,35.16357105]
[1768449688409,97.5935,143.5,143.44,35.11917667]
[1768449688410,6.2738,143.5,143.44,35.11917667]
[1768449688904,6.2738,143.5,143.46,0.04415942]
[1768449692505,6.273,143.52,143.46,0.04415942]
[1768449692705,41.1541008,143.52,143.46,0.04415942]
[1768449694809,41.1541008,143.52,143.46,35.16333609]
[1768449696216,41.1544008,143.51,143.46,0.04415942]
[1768449696406,41.1544008,143.51,143.47,0.04512378]
[1768449697814,6.2737,143.5,143.44,35.11917667]
[1768449698813,6.2737,143.5,143.46,0.04666797]
[1768449700016,34.8811008,143.51,143.46,0.04666797]
[1768449701416,0.04453406,143.5,143.46,0.04666797]
[1768449704919,0.04453406,143.5,143.46,35.16584464]
[1768449706018,34.8811008,143.53,143.46,35.16584464]
[1768449707314,6.2721,143.54,143.46,35.16584464]
[1768449708922,6.2721,143.54,143.47,117.45917667]
[1768449709222,6.2721,143.54,143.49,0.04541878]
[1768449713224,40.25038104,143.53,143.49,0.04541878]
[1768449713627,33.97798104,143.53,143.49,0.04541878]
[1768449714223,6.272,143.54,143.49,0.04541878]
[1768449714725,33.97798104,143.55,143.49,35.15616797]
[1768449716241,40.24958104,143.55,143.49,35.15616797]
[1768449716541,40.24958104,143.55,143.5,82.34]
[1768449718134,40.24878104,143.57,143.51,35.11074919]